bitfinex/quotes_BTCUSD_20251221
["timestamp","ask_amount","ask_price","bid_price","bid_amount"]
[1766353076608,0.03912986,88366.0,88365.0,3.611e-05]
[1766353077002,0.01357251,88368.0,88365.0,3.611e-05]
[1766353077003,0.00568,88367.0,88365.0,3.611e-05]
[1766353077199,0.00568,88367.0,88362.0,0.13291708]
[1766353077431,0.00568,88367.0,88363.0,0.01131695]
[1766353077633,0.00568,88367.0,88364.0,0.01131682]
[1766353078217,0.00568,88367.0,88363.0,0.01131695]
[1766353078418,0.00568,88367.0,88364.0,0.01131682]
[1766353080468,0.03399558,88371.0,88364.0,0.01131682]
[1766353080469,0.03399558,88371.0,88368.0,0.01131631]
[1766353080686,0.13099477,88380.0,88367.0,0.13236644]
[1766353080828,0.0339935,88375.0,88367.0,0.13236644]
[1766353081027,0.00568,88374.0,88367.0,0.13236644]
[1766353082566,0.00568,88374.0,88368.0,0.01131631]
[1766353082765,0.00568,88374.0,88367.0,0.13236644]
[1766353083381,0.00568,88374.0,88368.0,0.01131631]
[1766353084240,0.00568,88374.0,88367.0,0.13236644]
[1766353085598,0.00568,88374.0,88365.0,0.01131669]
[1766353085799,0.00568,88374.0,88366.0,0.01131656]
[1766353086363,0.00568,88374.0,88365.0,0.01131669]
[1766353086364,0.01699682,88374.0,88365.0,0.01131669]
[1766353087207,0.01699682,88374.0,88364.0,0.01131682]
[1766353087928,0.01699682,88374.0,88365.0,0.01131669]
[1766353090661,0.01699682,88374.0,88366.0,0.01131656]
[1766353091382,0.01699682,88374.0,88365.0,0.01131669]
[1766353091884,0.000549,88365.0,88362.0,0.01131708]
[1766353092231,0.03803029,88373.0,88363.0,0.01131695]
[1766353092433,0.11479,88371.0,88363.0,0.01131695]
[1766353092694,0.11479,88371.0,88364.0,0.01131682]
[1766353092915,0.11479,88371.0,88363.0,0.01131695]
[1766353093125,0.11479,88371.0,88364.0,0.01131682]
[1766353093481,0.2377,88371.0,88364.0,0.01131682]
[1766353093679,0.2377,88371.0,88363.0,0.01131695]
[1766353094229,0.2377,88371.0,88364.0,0.01131682]
[1766353094727,0.2377,88371.0,88363.0,0.01131695]
[1766353097121,0.11479,88370.0,88363.0,0.01131695]
[1766353097331,0.00568,88369.0,88363.0,0.01131695]
[1766353097696,0.00568,88369.0,88364.0,0.01131682]
[1766353098305,0.00568,88369.0,88365.0,0.01131669]
[1766353098536,0.00568,88369.0,88366.0,0.01131656]
[1766353099436,0.00568,88369.0,88365.0,0.01131669]
[1766353099839,0.00568,88369.0,88364.0,0.01131682]
[1766353100655,0.00568,88369.0,88363.0,0.01131695]
[1766353100853,0.00568,88369.0,88362.0,0.06770185]
[1766353100854,0.00568,88369.0,88362.0,0.01111708]
[1766353101187,0.00568,88369.0,88363.0,0.01131695]
[1766353102239,0.00568,88369.0,88364.0,0.01131682]
[1766353102442,0.00568,88369.0,88365.0,0.01131669]
[1766353103332,0.00568,88369.0,88364.0,0.01131682]
[1766353111260,0.00568,88369.0,88363.0,0.01131695]
[1766353112603,0.00568,88369.0,88364.0,0.01131682]
[1766353114582,0.00568,88369.0,88363.0,0.01131695]
[1766353115407,0.00568,88369.0,88364.0,0.01131682]
[1766353116827,0.00568,88369.0,88363.0,0.01131695]
[1766353118066,0.00568,88369.0,88361.0,0.12667721]
[1766353118388,0.00568,88369.0,88357.0,0.05694588]
[1766353118389,0.11571,88365.0,88358.0,0.00025198]
[1766353118595,0.11927,88363.0,88358.0,0.00025198]
[1766353118969,0.23498,88362.0,88358.0,1.98e-06]
[1766353119148,0.00024902,88358.0,88357.0,0.00035762]
[1766353119363,1.768e-05,88358.0,88357.0,0.00035762]
[1766353119557,0.23498,88362.0,88357.0,0.00035762]
[1766353120124,0.23498,88362.0,88357.0,0.01167534]
[1766353120390,0.11571,88362.0,88357.0,0.01167534]
[1766353120590,0.11927,88367.0,88362.0,0.000234]
[1766353121140,0.11927,88367.0,88360.0,0.01131733]
[1766353122040,0.11927,88367.0,88359.0,0.01131746]
[1766353122242,0.11927,88367.0,88360.0,0.01131733]
[1766353123451,0.00568,88369.0,88364.0,0.01131682]
[1766353123662,0.00568,88369.0,88367.0,0.000234]
[1766353123868,0.00568,88369.0,88364.0,0.01131682]
[1766353124078,0.00548,88369.0,88364.0,0.01131682]
[1766353124542,0.00548,88369.0,88363.0,0.01131695]
[1766353124755,0.00568,88371.0,88364.0,0.10433]
[1766353128955,0.00568,88371.0,88362.0,0.01131708]
[1766353133774,0.00568,88371.0,88361.0,0.01131721]
[1766353133981,0.00568,88371.0,88362.0,0.01131708]
[1766353136599,0.00568,88371.0,88363.0,0.01131695]
[1766353137966,0.12495,88371.0,88361.0,0.01131721]
[1766353138180,0.24066,88371.0,88361.0,0.01131721]
[1766353138366,0.24066,88371.0,88363.0,0.01131695]
[1766353138560,0.24066,88371.0,88362.0,0.01131708]
[1766353139701,0.00568,88371.0,88365.0,0.01131669]
[1766353139932,0.00568,88371.0,88364.0,0.05658412]
[1766353139933,0.00568,88371.0,88364.0,0.01131682]
[1766353140136,0.00568,88371.0,88363.0,0.01131695]
[1766353140929,0.00568,88371.0,88364.0,0.01131682]
[1766353142875,0.00568,88371.0,88365.0,0.01131669]
[1766353143087,0.00568,88371.0,88364.0,0.01131682]
[1766353148996,0.00568,88371.0,88363.0,0.11556695]
[1766353149332,0.00568,88371.0,88364.0,0.01131682]
[1766353150229,0.11394,88380.0,88370.0,0.01131605]
[1766353150446,0.01357251,88389.0,88378.0,0.11010503]
[1766353150641,0.00568,88388.0,88380.0,0.01131477]
[1766353150847,0.00568,88388.0,88379.0,0.47338451]
[1766353151266,0.00568,88388.0,88379.0,0.46206961]
[1766353151888,0.12524,88388.0,88379.0,0.46206961]
[1766353152117,0.12524,88388.0,88379.0,0.0113149]
[1766353154132,0.12524,88388.0,88378.0,0.57217464]
[1766353155326,0.12524,88388.0,88380.0,0.01131477]
[1766353155537,0.12524,88388.0,88381.0,0.01131464]
[1766353155748,0.12524,88388.0,88380.0,0.01131477]
[1766353156144,0.12524,88388.0,88379.0,0.0113149]
[1766353156373,0.12524,88388.0,88378.0,0.57217464]
[1766353156555,0.12524,88388.0,88379.0,0.0113149]
[1766353156899,0.12524,88388.0,88380.0,0.01131477]
[1766353157526,0.12524,88388.0,88379.0,0.0113149]
[1766353157726,0.001099,88379.0,88378.0,0.46206961]
[1766353157924,0.00568,88388.0,88378.0,0.01131503]
[1766353158129,0.2335,88387.0,88378.0,0.01131503]
[1766353158688,0.11394,88387.0,88377.0,0.01131516]
[1766353158884,0.2335,88386.0,88378.0,0.01131503]
[1766353159090,0.2335,88386.0,88377.0,0.01131516]
[1766353160490,0.11394,88386.0,88377.0,0.01131516]
[1766353160872,0.23694,88386.0,88377.0,0.01131516]
[1766353161432,0.11394,88386.0,88378.0,0.01131503]
[1766353161711,0.000549,88378.0,88377.0,0.01131516]
[1766353162124,0.123,88385.0,88377.0,0.01111516]
[1766353163338,0.123,88385.0,88379.0,0.0113149]
[1766353164315,0.123,88385.0,88378.0,0.01131503]
[1766353164520,0.123,88385.0,88377.0,0.01111516]
[1766353164726,0.123,88385.0,88378.0,0.01131503]
[1766353166229,0.123,88385.0,88379.0,0.0113149]
[1766353166675,0.123,88385.0,88380.0,0.01131477]
[1766353167051,0.123,88385.0,88379.0,0.0113149]
[1766353172390,0.123,88385.0,88374.0,0.01131554]
[1766353172600,0.000549,88379.0,88375.0,0.05657708]
[1766353172796,0.00568,88383.0,88376.0,0.01131528]
[1766353173404,0.00568,88383.0,88378.0,0.01131503]
[1766353173605,0.00568,88383.0,88377.0,0.01131516]
[1766353173816,0.00568,88383.0,88376.0,0.01131528]
[1766353174021,0.00134423,88376.0,88368.0,0.01699631]
[1766353174312,0.23962,88375.0,88368.0,0.01699631]
[1766353174692,0.23962,88375.0,88368.0,0.00568]
[1766353176027,0.00079423,88376.0,88368.0,0.00568]
[1766353176028,0.2434,88373.0,88368.0,0.00568]
[1766353177866,0.11605,88365.0,88354.0,0.0113181]
[1766353178072,0.01186631,88368.0,88356.0,0.01131785]
[1766353178073,0.23082,88361.0,88356.0,0.01131785]
[1766353178283,0.23082,88360.0,88353.0,0.00568]
[1766353178688,0.23082,88360.0,88355.0,0.01131797]
[1766353179690,0.23082,88360.0,88356.0,0.01131785]
[1766353179894,0.23082,88360.0,88355.0,0.01131797]
[1766353180099,0.0007092,88359.0,88357.0,0.01131772]
[1766353180311,0.0007092,88359.0,88355.0,0.01131797]
[1766353180312,0.0007092,88359.0,88356.0,0.01131785]
[1766353184726,0.0007092,88359.0,88355.0,0.01131797]
[1766353184956,0.0007092,88359.0,88356.0,0.01131785]
[1766353185156,0.0007092,88359.0,88354.0,0.0113181]
[1766353185363,0.0007092,88359.0,88353.0,0.06790904]
[1766353185566,0.0007092,88359.0,88356.0,0.01131785]
[1766353192474,0.0007092,88359.0,88350.0,0.00024672]
[1766353192475,0.11477,88353.0,88350.0,0.00024672]
[1766353192682,0.11477,88353.0,88343.0,0.0004]
[1766353192683,0.23082,88352.0,88344.0,0.01171938]
[1766353192902,0.23082,88352.0,88345.0,0.01171925]
[1766353193118,0.23082,88352.0,88345.0,0.0004]
[1766353196994,0.23082,88352.0,88345.0,0.01171925]
[1766353197193,0.23082,88352.0,88345.0,0.0004]
[1766353197395,0.23082,88352.0,88345.0,0.01171925]
[1766353198014,0.23082,88352.0,88346.0,0.01131913]
[1766353198216,0.23082,88352.0,88345.0,0.01171925]
[1766353199444,0.23082,88352.0,88345.0,0.0004]
[1766353201092,0.01357251,88357.0,88352.0,0.000549]
[1766353201302,0.01925251,88357.0,88352.0,0.000549]
[1766353201474,0.01925251,88357.0,88350.0,0.01131861]
[1766353201673,0.01925251,88357.0,88348.0,0.01131887]
[1766353201892,0.01925251,88357.0,88349.0,0.01131874]
[1766353202216,0.01925251,88357.0,88350.0,0.01131861]
[1766353206372,0.01925251,88357.0,88349.0,0.01131874]
[1766353207005,0.01925251,88357.0,88350.0,0.01131861]
[1766353209436,0.01925251,88357.0,88348.0,0.01131887]
[1766353210346,0.01925251,88357.0,88349.0,0.01131874]
[1766353210545,0.01925251,88357.0,88348.0,0.01131887]
[1766353210748,0.01925251,88357.0,88349.0,0.01131874]
[1766353211252,0.01925251,88357.0,88350.0,0.01131861]
[1766353212108,0.01925251,88357.0,88349.0,0.01131874]
[1766353212283,0.01925251,88357.0,88348.0,0.13307887]
[1766353212752,0.01925251,88357.0,88349.0,0.01131874]
[1766353212965,0.01925251,88357.0,88348.0,0.13307887]
[1766353213384,0.01925251,88357.0,88348.0,0.12176]
[1766353213751,0.01925251,88357.0,88348.0,0.13307887]
[1766353214709,0.00055,88348.0,88345.0,0.01171925]
[1766353215404,0.25465251,88357.0,88346.0,0.01131913]
[1766353215644,0.25465251,88357.0,88347.0,0.011319]
[1766353216781,0.25465251,88357.0,88347.0,0.06791353]
[1766353217245,0.25465251,88357.0,88349.0,0.01131874]
[1766353218451,0.25465251,88357.0,88348.0,0.01131887]
[1766353218650,0.25465251,88357.0,88347.0,0.011319]
[1766353219053,0.25465251,88357.0,88348.0,0.01131887]
[1766353219810,0.01925251,88357.0,88349.0,0.01131874]
[1766353220184,0.01925251,88357.0,88348.0,0.01131887]
[1766353220729,0.01925251,88357.0,88347.0,0.011319]
[1766353221354,0.01925251,88357.0,88345.0,0.0004]
[1766353221355,0.11643,88355.0,88345.0,0.0004]
[1766353221582,0.2354,88353.0,88345.0,0.0004]
[1766353221991,0.2354,88353.0,88347.0,0.011319]
[1766353222714,0.2354,88353.0,88346.0,0.01131913]
[1766353224238,0.01925251,88357.0,88346.0,0.01131913]
[1766353224443,0.2354,88356.0,88345.0,0.01171925]
[1766353224660,0.03057023,88357.0,88345.0,0.01171925]
[1766353224872,0.01131785,88356.0,88345.0,0.0004]
[1766353225076,0.03057023,88357.0,88338.0,0.0004]
[1766353225077,0.00015,88345.0,88338.0,0.0004]
[1766353225267,0.00015,88345.0,88336.0,0.00568]
[1766353225268,0.11897,88340.0,88336.0,0.00568]
[1766353225517,0.11897,88340.0,88334.0,0.00568]
[1766353225518,0.10055689,88340.0,88334.0,0.00568]
[1766353226257,0.20385337,88418.0,88321.0,0.24415]
[1766353226258,0.11643,88339.0,88321.0,0.24415]
[1766353226462,0.22636297,88354.0,88329.0,0.01132131]
[1766353226463,0.00015,88334.0,88329.0,0.01132131]
[1766353226617,0.01357251,88338.0,88329.0,0.01132131]
[1766353227029,0.01357251,88338.0,88327.0,0.12176]
[1766353227224,0.01357251,88338.0,88327.0,0.13308156]
[1766353227425,0.01357251,88338.0,88327.0,0.12176]
[1766353227426,0.11897,88336.0,88327.0,0.12176]
[1766353227630,0.11897,88336.0,88327.0,0.1218672]
[1766353227848,0.11897,88336.0,88327.0,0.0001072]
[1766353228031,0.11897,88335.0,88327.0,0.0001072]
[1766353228205,0.2354,88335.0,88327.0,0.0001072]
[1766353228413,0.13029066,88334.0,88327.0,0.0001072]
[1766353228595,0.11897,88334.0,88327.0,0.0001072]
[1766353229637,0.11643,88335.0,88327.0,0.0001072]
[1766353230938,0.11643,88335.0,88334.0,0.00024678]
[1766353231143,0.11643,88335.0,88334.0,9.678e-05]
[1766353231542,0.23522,88335.0,88334.0,9.678e-05]
[1766353236426,0.23522,88335.0,88327.0,0.0001072]
[1766353236786,0.11643,88335.0,88327.0,0.0001072]
[1766353239390,0.01132028,88337.0,88327.0,0.0001072]
[1766353239972,0.01132041,88336.0,88327.0,0.0001072]
[1766353240481,0.12664028,88337.0,88327.0,0.0001072]
[1766353241004,0.01132041,88336.0,88327.0,0.0001072]
[1766353241211,0.11532,88337.0,88327.0,0.0001072]
[1766353241765,0.12664028,88337.0,88327.0,0.0001072]
[1766353243420,0.01132028,88337.0,88328.0,0.11821]
[1766353243813,0.02489266,88338.0,88328.0,0.11821]
[1766353245069,0.01132028,88337.0,88328.0,0.11821]
[1766353246708,0.02489266,88338.0,88328.0,0.11821]
[1766353247031,0.13842251,88338.0,88328.0,0.11821]
[1766353247250,0.00568,88339.0,88328.0,0.47370231]
[1766353247461,0.01131951,88343.0,88328.0,0.47370231]
[1766353247462,0.02489202,88343.0,88338.0,0.001099]
[1766353247672,0.00568,88342.0,88338.0,0.001099]
[1766353247883,0.00548,88342.0,88333.0,0.1205]
[1766353248321,0.00548,88342.0,88331.0,0.12953105]
[1766353249369,0.01679964,88342.0,88331.0,0.11821]
[1766353250339,0.01131977,88341.0,88331.0,0.11821]
[1766353250553,0.00568,88340.0,88331.0,0.11821]
[1766353250768,0.01131977,88341.0,88331.0,0.11821]
[1766353250986,0.00568,88340.0,88331.0,0.11821]
[1766353251914,0.01131977,88341.0,88331.0,0.11821]
[1766353252143,0.0113199,88340.0,88331.0,0.11821]
[1766353252362,0.00568,88340.0,88331.0,0.12953105]
[1766353252565,0.00568,88340.0,88331.0,0.11821]
[1766353253142,0.01131964,88342.0,88331.0,0.11821]
[1766353253363,0.00568,88341.0,88331.0,0.11821]
[1766353253969,0.00568,88341.0,88332.0,0.01132092]
[1766353254338,0.00267738,88341.0,88334.0,0.11821]
[1766353254624,0.00267738,88341.0,88333.0,0.1205]
[1766353254625,0.00267738,88341.0,88335.0,0.12953054]
[1766353254799,0.00568,88342.0,88335.0,0.12953054]
[1766353255177,0.00568,88342.0,88336.0,0.01132041]
[1766353255857,0.00568,88342.0,88335.0,0.12953054]
[1766353256062,0.00568,88342.0,88335.0,0.11821]
[1766353256480,0.00568,88342.0,88330.0,0.01700118]
[1766353256684,0.00568,88342.0,88331.0,0.01132105]
[1766353257455,0.00568,88342.0,88333.0,0.01132079]
[1766353257655,0.00568,88342.0,88332.0,0.01132092]
[1766353258751,0.00568,88342.0,88333.0,0.01132079]
[1766353259033,0.00568,88342.0,88332.0,0.01132092]
[1766353260455,0.00568,88342.0,88331.0,0.01132105]
[1766353260600,0.00568,88342.0,88330.0,0.47938206]
[1766353261026,0.00568,88342.0,88332.0,0.01132092]
[1766353261224,0.00568,88342.0,88333.0,0.01132079]
[1766353261401,0.00568,88342.0,88334.0,0.01132066]
[1766353261989,0.00568,88342.0,88335.0,0.01132054]
[1766353262244,0.00568,88342.0,88334.0,0.01132066]
[1766353262423,0.00568,88341.0,88334.0,0.01132066]
[1766353262628,0.00568,88341.0,88333.0,0.01132079]
[1766353263441,0.00568,88341.0,88334.0,0.01132066]
[1766353263636,0.00568,88341.0,88333.0,0.01132079]
[1766353264020,0.00568,88341.0,88332.0,0.01132092]
[1766353265989,0.00568,88341.0,88333.0,0.01132079]
[1766353266820,0.00568,88341.0,88332.0,0.01132092]
[1766353267429,0.00568,88341.0,88330.0,0.47938206]
[1766353267851,0.00568,88341.0,88331.0,0.01132105]
[1766353268430,0.00568,88341.0,88332.0,0.01132092]
[1766353269273,0.00568,88341.0,88331.0,0.01132105]
[1766353271214,0.00568,88341.0,88332.0,0.01132092]
[1766353271701,0.00568,88341.0,88331.0,0.01132105]
[1766353272068,0.00568,88341.0,88332.0,0.01132092]
[1766353272408,0.00568,88341.0,88331.0,0.01132105]
[1766353272769,0.00568,88341.0,88332.0,0.01132092]
[1766353273173,0.00568,88341.0,88333.0,0.01132079]
[1766353274370,0.00568,88341.0,88332.0,0.01132092]
[1766353275415,0.00568,88341.0,88331.0,0.01132105]
[1766353275612,0.00568,88341.0,88332.0,0.01132092]
[1766353275983,0.00568,88341.0,88331.0,0.01132105]
[1766353277627,0.00568,88341.0,88333.0,0.01132079]
[1766353277804,0.01131823,88353.0,88338.0,0.12097]
[1766353278002,0.00568,88352.0,88343.0,0.12097]
[1766353278419,0.01699836,88352.0,88343.0,0.12097]
[1766353279223,0.00568,88351.0,88343.0,0.12097]
[1766353279436,0.00568,88351.0,88344.0,0.12097]
[1766353286443,0.00568,88350.0,88344.0,0.12097]
[1766353286562,0.00568,88349.0,88344.0,0.12097]
[1766353289438,0.00568,88349.0,88344.0,0.13228938]
[1766353289785,0.00568,88349.0,88344.0,0.12097]
[1766353290188,0.00568,88349.0,88343.0,0.01131951]
[1766353291160,0.00568,88349.0,88344.0,0.01131938]
[1766353291784,0.00568,88349.0,88343.0,0.01131951]
[1766353294417,0.00568,88349.0,88340.0,0.06791932]
[1766353294670,0.00568,88349.0,88342.0,0.01131964]
[1766353294877,0.00568,88349.0,88343.0,0.01131951]
[1766353295081,0.00568,88349.0,88342.0,0.01131964]
[1766353295247,0.00568,88349.0,88340.0,0.0113199]
[1766353295447,0.00568,88349.0,88341.0,0.01131977]
[1766353298616,0.00568,88349.0,88340.0,0.0113199]
[1766353299025,0.00568,88349.0,88339.0,0.58948041]
[1766353299174,0.00568,88349.0,88340.0,0.0113199]
[1766353301117,0.00568,88349.0,88341.0,0.01131977]
[1766353302258,0.00568,88349.0,88339.0,0.71448041]
[1766353302418,0.00568,88349.0,88340.0,0.0113199]
[1766353302831,0.00568,88349.0,88341.0,0.01131977]
[1766353304395,0.07359277,88349.0,88339.0,0.70316039]
[1766353304597,0.03578538,88348.0,88339.0,0.70316039]
[1766353304808,0.03578538,88348.0,88339.0,0.70306039]
[1766353305009,0.03578538,88348.0,88339.0,0.70296039]
[1766353305346,0.03578538,88348.0,88339.0,0.58717039]
[1766353305546,0.23069,88347.0,88339.0,0.46217039]
[1766353306318,0.242009,88347.0,88339.0,0.46217039]
[1766353306517,0.23069,88347.0,88339.0,0.46217039]
[1766353312679,0.01699874,88349.0,88339.0,0.46217039]
[1766353312877,0.01131887,88348.0,88339.0,0.46217039]
[1766353313150,0.02446887,88348.0,88339.0,0.46217039]
[1766353320592,0.02446887,88348.0,88338.0,0.46219433]
[1766353322747,0.14053887,88348.0,88338.0,0.46219433]
[1766353322946,0.11607,88348.0,88338.0,0.46219433]
[1766353323144,0.12738887,88348.0,88338.0,0.46219433]
[1766353323465,0.11607,88346.0,88338.0,0.46219433]
[1766353324132,0.11462,88347.0,88338.0,0.46219433]
[1766353336808,0.125939,88347.0,88338.0,0.46219433]
[1766353336958,0.1177,88346.0,88336.0,0.00568]
[1766353337566,0.1177,88346.0,88336.0,0.01700041]
[1766353339147,0.1177,88346.0,88336.0,0.47919474]
[1766353339503,0.11532,88345.0,88336.0,0.00568]
[1766353341356,0.23302,88341.0,88334.0,0.01132066]
[1766353341525,0.01357251,88343.0,88334.0,0.01132066]
[1766353341526,0.11532,88339.0,88334.0,6.6e-07]
[1766353341740,0.23302,88339.0,88334.0,6.6e-07]
[1766353342316,0.23302,88339.0,88329.0,0.01132131]
[1766353342317,0.0113199,88340.0,88325.0,0.0002]
[1766353342557,0.11532,88336.0,88325.0,0.0002]
[1766353342722,0.01132054,88335.0,88326.0,0.00568]
[1766353342917,0.01132054,88335.0,88323.0,0.00568]
[1766353342918,0.00055,88326.0,88323.0,0.00568]
[1766353343139,0.1177,88328.0,88323.0,0.00568]
[1766353343140,0.21515422,88328.0,88323.0,0.00568]
[1766353343342,0.21515422,88328.0,88325.0,0.00027766]
[1766353343541,0.21515422,88328.0,88323.0,0.00568]
[1766353343719,0.21515422,88328.0,88326.0,0.00024681]
[1766353344781,0.21515422,88328.0,88323.0,0.00568]
[1766353345070,0.11532,88329.0,88321.0,5.4e-07]
[1766353345274,0.11532,88327.0,88321.0,5.4e-07]
[1766353345472,0.23302,88326.0,88321.0,0.01132287]
[1766353346039,0.11532,88326.0,88321.0,0.01132287]
[1766353346244,0.1177,88325.0,88321.0,5.4e-07]
[1766353349384,0.1177,88325.0,88320.0,0.01710246]
[1766353349782,0.117151,88325.0,88321.0,0.01132233]
[1766353350084,0.117151,88325.0,88322.0,0.0113222]
[1766353350443,0.117151,88325.0,88321.0,0.01132233]
[1766353350901,0.117151,88325.0,88322.0,0.0113222]
[1766353352137,0.11532,88326.0,88323.0,0.01132207]
[1766353352351,0.11111218,88326.0,88323.0,0.01132207]
[1766353352567,0.00568,88334.0,88326.0,0.01132169]
[1766353352781,0.11394,88339.0,88326.0,0.01132169]
[1766353352995,0.11394,88334.0,88327.0,0.01132156]
[1766353353213,0.00568,88335.0,88331.0,0.01132105]
[1766353353428,0.00568,88335.0,88330.0,0.01132118]
[1766353353641,0.00558,88335.0,88330.0,0.01132118]
[1766353354023,0.00558,88335.0,88329.0,0.01132131]
[1766353355314,0.00558,88335.0,88330.0,0.01132118]
[1766353355527,0.00568,88337.0,88330.0,0.01132118]
[1766353356989,0.00568,88337.0,88329.0,0.01132131]
[1766353358009,0.00568,88337.0,88327.0,0.57714294]
[1766353358010,0.11364,88336.0,88327.0,0.5884645]
[1766353358217,0.11364,88334.0,88328.0,0.01132143]
[1766353358628,0.23295,88334.0,88328.0,0.01132143]
[1766353358831,0.11931,88334.0,88328.0,0.01132143]
[1766353362556,0.11931,88334.0,88326.0,0.01132169]
[1766353362757,0.000549,88328.0,88326.0,0.01142895]
[1766353363176,0.11931,88334.0,88326.0,0.01122895]
[1766353363950,0.11931,88334.0,88327.0,0.01132156]
[1766353365188,0.11931,88334.0,88328.0,0.01132143]
[1766353365491,0.11931,88334.0,88327.0,0.01132156]
[1766353366082,0.11931,88334.0,88328.0,0.01132143]
[1766353367022,0.11931,88334.0,88327.0,0.01132156]
[1766353369809,0.11931,88334.0,88327.0,0.00676107]
[1766353373332,0.11931,88334.0,88327.0,0.01132156]
[1766353376172,0.11931,88334.0,88328.0,0.01132143]
[1766353376371,0.11921,88334.0,88328.0,0.01132143]
[1766353376583,0.11911,88334.0,88328.0,0.01132143]
[1766353376784,0.11911,88334.0,88327.0,0.01132156]
[1766353376984,0.11911,88334.0,88326.0,0.01122895]
[1766353377412,0.11911,88334.0,88326.0,0.00010726]
[1766353377588,0.11911,88334.0,88326.0,0.01142895]
[1766353378507,0.11911,88334.0,88326.0,0.00010726]
[1766353378895,0.11911,88334.0,88326.0,0.01142895]
[1766353385846,0.11911,88334.0,88326.0,0.00010726]
[1766353386042,0.11911,88334.0,88326.0,0.01142895]
[1766353386248,0.11911,88334.0,88327.0,0.01132156]
[1766353387127,0.11911,88334.0,88326.0,0.01142895]
[1766353387327,0.11911,88334.0,88326.0,0.00010726]
[1766353387328,0.000549,88327.0,88326.0,0.00010726]
[1766353387560,4.542e-05,88327.0,88325.0,0.01690908]
[1766353387769,0.11911,88334.0,88326.0,0.01132169]
[1766353387966,0.11911,88334.0,88327.0,0.01132156]
[1766353388378,0.11911,88334.0,88328.0,0.01132143]
[1766353388735,0.11911,88334.0,88327.0,0.01132156]
[1766353388955,0.11911,88334.0,88328.0,0.01132143]
[1766353389169,0.11911,88334.0,88327.0,0.01132156]
[1766353389376,0.01700182,88335.0,88327.0,0.01132156]
[1766353390071,0.01700182,88335.0,88328.0,0.01132143]
[1766353390594,0.01700182,88335.0,88327.0,0.01132156]
[1766353391649,0.01700182,88335.0,88328.0,0.01132143]
[1766353392955,0.01700182,88335.0,88327.0,0.01132156]
[1766353393409,0.01700182,88335.0,88328.0,0.01132143]
[1766353394576,0.01700182,88335.0,88329.0,0.01132131]
[1766353394782,0.01680182,88335.0,88329.0,0.01132131]
[1766353395633,0.01680182,88335.0,88328.0,0.01132143]
[1766353395811,0.01680182,88335.0,88329.0,0.01132131]
[1766353396399,0.01680182,88335.0,88330.0,0.1244]
[1766353398701,0.01680182,88335.0,88330.0,0.13572118]
[1766353399554,0.01680182,88335.0,88330.0,0.1244]
[1766353405678,0.00568,88337.0,88330.0,0.1244]
[1766353405882,0.00568,88337.0,88330.0,0.13572118]
[1766353406034,0.03015784,88337.0,88330.0,0.13572118]
[1766353406874,0.03015784,88337.0,88330.0,0.1244]
[1766353407366,0.03015784,88337.0,88330.0,0.124354]
[1766353407571,0.03015784,88337.0,88325.0,0.47930142]
[1766353408731,0.04147812,88337.0,88325.0,0.47930142]
[1766353409551,0.01132054,88335.0,88325.0,0.4679796]
[1766353409804,0.04147812,88337.0,88325.0,0.4679796]
[1766353410001,0.16101812,88337.0,88325.0,0.00564789]
[1766353410803,0.15533812,88337.0,88325.0,0.00564789]
[1766353411011,0.00568,88336.0,88325.0,0.00564789]
[1766353411642,0.01700041,88336.0,88325.0,0.00564789]
[1766353413996,0.00568,88336.0,88325.0,0.01696971]
[1766353414416,0.01132054,88335.0,88325.0,0.00564789]
[1766353414615,0.01700041,88336.0,88325.0,0.00564789]
[1766353416005,0.13396041,88336.0,88325.0,0.00564789]
[1766353417527,0.12264,88336.0,88325.0,0.00564789]
[1766353417864,0.00568,88336.0,88329.0,0.12092]
[1766353418064,0.00568,88336.0,88330.0,0.1213]
[1766353418426,0.00568,88337.0,88330.0,0.1213]
[1766353420527,0.01700028,88337.0,88330.0,0.1213]
[1766353421018,0.00568,88337.0,88330.0,0.1213]
[1766353421179,0.01700028,88337.0,88330.0,0.1213]
[1766353421604,0.00568,88337.0,88330.0,0.1213]
[1766353430155,0.01700028,88337.0,88330.0,0.1213]
[1766353430574,0.00568,88337.0,88330.0,0.1213]
[1766353431391,0.00568,88337.0,88330.0,0.11583706]
[1766353431594,0.00055,88330.0,88326.0,0.01132169]
[1766353431916,0.00568,88337.0,88327.0,0.01132156]
[1766353433834,0.00568,88337.0,88328.0,0.01132143]
[1766353434333,0.00568,88337.0,88329.0,0.01132131]
[1766353434537,0.01700156,88337.0,88328.0,0.13262143]
[1766353434764,0.01700156,88337.0,88328.0,0.1213]
[1766353434986,0.01700156,88337.0,88328.0,0.13262143]
[1766353436016,0.01700156,88337.0,88329.0,0.01132131]
[1766353436309,0.01700156,88337.0,88330.0,0.01132118]
[1766353439248,0.01700156,88337.0,88329.0,0.01132131]
[1766353440254,0.01700156,88337.0,88330.0,0.01132118]
[1766353441322,0.01700156,88337.0,88331.0,0.01132105]
[1766353441526,0.01680156,88337.0,88331.0,0.01132105]
[1766353441950,0.01680156,88337.0,88330.0,0.01132118]
[1766353442937,0.01680156,88337.0,88327.0,0.13224156]
[1766353443143,0.01680156,88337.0,88327.0,0.01132156]
[1766353443975,0.01680156,88337.0,88328.0,0.01132143]
[1766353444130,0.01680156,88337.0,88329.0,0.01132131]
[1766353444514,0.01680156,88337.0,88328.0,0.01132143]
[1766353444719,0.01680156,88337.0,88329.0,0.01132131]
[1766353445109,0.01680156,88337.0,88330.0,0.01132118]
[1766353445631,0.01680156,88337.0,88329.0,0.01132131]
[1766353445839,0.01680156,88337.0,88330.0,0.01132118]
[1766353446807,0.00055,88330.0,88325.0,0.00564789]
[1766353447077,0.00055,88330.0,88325.0,0.01686971]
[1766353447224,0.1155,88336.0,88326.0,0.01122169]
[1766353447997,0.13981156,88337.0,88325.0,6.3e-07]
[1766353447998,0.00055,88326.0,88325.0,6.3e-07]
[1766353448147,0.12356,88326.0,88325.0,6.3e-07]
[1766353448354,0.12301,88326.0,88325.0,6.3e-07]
[1766353448754,0.23851,88326.0,88325.0,6.3e-07]
[1766353449362,0.1155,88326.0,88325.0,6.3e-07]
[1766353449816,0.23851,88326.0,88325.0,6.3e-07]
[1766353454466,0.24304481,88326.0,88325.0,6.3e-07]
[1766353454681,0.24304481,88326.0,88307.0,0.01132413]
[1766353454682,0.05661167,88321.0,88302.0,0.16987325]
[1766353454859,0.13658251,88313.0,88302.0,0.11325]